fUST/lending_fUST_20251229
["ID","MTS","AMOUNT","RATE_DAILY","PERIOD"]
[400018167,1767023448178,-396.992,0.00019726,2]
[400018168,1767023448187,-681.99,0.00019726,2]
[400018169,1767023448197,-396.992,0.00019726,2]
[400018170,1767023448207,-396.992,0.00019726,2]
[400018171,1767023448216,-151.0,0.00019726,2]
[400018172,1767023448226,-151.0,0.00019726,2]
[400018173,1767023448236,-151.0,0.00019726,2]
[400018174,1767023448246,-151.0,0.00019726,2]
[400018175,1767023448255,-151.0,0.00019726,2]
[400018176,1767023448265,-151.88974,0.00019726,2]
[400018177,1767023448275,-151.88974,0.00019726,2]
[400018178,1767023448284,-151.88974,0.00019726,2]
[400018179,1767023448294,-151.88974,0.00019726,2]
[400018180,1767023448303,-1989.21,0.00019726,2]
[400018181,1767023448313,-151.0,0.00019726,2]
[400018182,1767023448323,-500.0,0.00019726,2]
[400018183,1767023448333,-500.0,0.00019726,2]
[400018184,1767023448342,-184.789263,0.00019726,2]
[400018185,1767023448352,-500.0,0.00019726,2]
[400018186,1767023448361,-151.0,0.00019726,2]
[400018187,1767023448370,-500.0,0.00019726,2]
[400018188,1767023448380,-1629.988117,0.00019726,2]
[400018189,1767023448391,-1629.988117,0.00019726,2]
[400018190,1767023448400,-1629.988117,0.00019726,2]
[400018191,1767023448410,-203.72,0.00019726,2]
[400018192,1767023448419,-1629.988117,0.00019726,2]
[400018193,1767023448429,-197.8086957,0.00019726,2]
[400018194,1767023448438,-204.55178,0.00019726,2]
[400018195,1767023448448,-204.55178,0.00019726,2]
[400018196,1767023448457,-204.55178,0.00019726,2]
[400018197,1767023448467,-204.55178,0.00019726,2]
[400018198,1767023448476,-394.448318,0.00019726,2]
[400018199,1767023448486,-394.448318,0.00019726,2]
[400018200,1767023448495,-394.448318,0.00019726,2]
[400018201,1767023448505,-394.448318,0.00019726,2]
[400018202,1767023448515,-500.0,0.00019726,2]
[400018203,1767023448525,-500.0,0.00019726,2]
[400018204,1767023448536,-151.0,0.00019726,2]
[400018205,1767023448546,-300.735032,0.00019726,2]
[400018206,1767023448556,-500.0,0.00019726,2]
[400018207,1767023448567,-151.0,0.00019726,2]
[400018208,1767023448576,-174.891654,0.00019726,2]
[400018209,1767023448586,-174.891654,0.00019726,2]
[400018210,1767023448597,-151.0,0.00019726,2]
[400018211,1767023448607,-174.891654,0.00019726,2]
[400018212,1767023448617,-227.262837,0.00019726,2]
[400018213,1767023448627,-174.891654,0.00019726,2]
[400018214,1767023448637,-197.794008,0.00019726,2]
[400018215,1767023448646,-197.794008,0.00019726,2]
[400018216,1767023448658,-500.0,0.00019726,2]
[400018217,1767023448668,-197.794008,0.00019726,2]
[400018218,1767023448678,-197.794008,0.00019726,2]
[400018219,1767023448688,-500.0,0.00019726,2]
[400018220,1767023448701,-509.772071,0.00019726,2]
[400018221,1767023448712,-151.0,0.00019726,2]
[400018222,1767023448722,-509.772071,0.00019726,2]
[400018223,1767023448732,-509.772071,0.00019726,2]
[400018224,1767023448742,-509.772071,0.00019726,2]
[400018225,1767023448751,-160.28991,0.00019726,2]
[400018226,1767023448760,-160.28991,0.00019726,2]
[400018227,1767023448769,-160.28991,0.00019726,2]
[400018228,1767023448779,-160.28991,0.00019726,2]
[400018229,1767023448788,-500.0,0.00019726,2]
[400018230,1767023448797,-10371.66,0.00019726,2]
[400018231,1767023448807,-151.0,0.00019726,2]
[400018232,1767023448815,-151.0,0.00019726,2]
[400018233,1767023448825,-151.0,0.00019726,2]
[400018234,1767023448834,-151.0,0.00019726,2]
[400018235,1767023448844,-500.0,0.00019726,2]
[400018236,1767023448853,-188.36476689,0.00019726,2]
[400018237,1767023448862,-500.0,0.00019726,2]
[400018238,1767023448871,-500.0,0.00019726,2]
[400018239,1767023448881,-151.0,0.00019726,2]
[400018240,1767023448989,-255.67595508,0.00019726,2]
[400018241,1767023448999,-928.38,0.00019726,2]
[400018242,1767023449011,-199.17828,0.00019726,2]
[400018243,1767023449023,-1585.9,0.00019726,2]
[400018244,1767023449037,-1111.48,0.00019726,2]
[400018245,1767023449047,-500.0,0.00019726,2]
[400018246,1767023449056,-1867.66,0.00019726,2]
[400018247,1767023449064,-500.0,0.00019726,2]
[400018248,1767023449075,-500.0,0.00019726,2]
[400018249,1767023449084,-500.0,0.00019726,2]
[400018250,1767023449093,-731.41,0.00019726,2]
[400018251,1767023449103,-500.0,0.00019726,2]
[400018252,1767023449113,-500.0,0.00019726,2]
[400018253,1767023449122,-1960.08,0.00019726,2]
[400018254,1767023449131,-1306.39,0.00019726,2]
[400018255,1767023449140,-2052.28,0.00019726,2]
[400018256,1767023449149,-500.0,0.00019726,2]
[400018257,1767023449158,-500.0,0.00019726,2]
[400018258,1767023449167,-1848.85,0.00019726,2]
[400018259,1767023449177,-160.0,0.00019769,2]
[400018260,1767023449186,-180.05142311,0.0001978,2]
[400018261,1767023449195,-324.09256159,0.0001978,2]
[400018262,1767023449205,-192.45689342,0.0001978,2]
[400018263,1767023449214,-346.42240815,0.0001978,2]
[400018264,1767023449223,-156.66,0.000198,2]
[400018265,1767023449232,-161.39,0.000198,2]
[400018266,1767023449242,-1104.06332377,0.00019864,2]
[400018267,1767023449252,-27721.11,0.00019973,3]
[400018268,1767023449261,-99999.999999,0.0002,2]
[400018269,1767023449271,-2714.33860453,0.0002,2]
[400018270,1767023449280,-200.91829617,0.0002,2]
[400018271,1767023449290,-50701.45680191,0.0002,10]
[400018272,1767023449299,-33458.12371971,0.0002,2]
[400018273,1767023449308,-1000.0,0.0002,2]
[400018274,1767023449318,-500.0,0.0002,2]
[400018275,1767023449327,-500.0,0.0002,2]
[400018276,1767023449336,-151.0,0.0002,2]
[400018277,1767023449345,-594.68,0.0002,2]
[400018278,1767023449355,-503.45367287,0.0002,2]
[400018279,1767023449364,-1000.0,0.0002,2]
[400018280,1767023449374,-736.92,0.0002,2]
[400018281,1767023449383,-836.09,0.0002,2]
[400018282,1767023449392,-151.0,0.0002,2]
[400018283,1767023449401,-151.0,0.0002,2]
[400018284,1767023449411,-1154.01,0.0002,2]
[400018285,1767023449420,-208.25775335,0.0002,2]
[400018286,1767023449429,-500.0,0.0002,2]
[400018287,1767023449439,-500.0,0.0002,2]
[400018288,1767023449447,-307.101899,0.0002,2]
[400018289,1767023449457,-307.10189,0.0002,2]
[400018290,1767023449467,-396.992,0.0002,2]
[400018291,1767023449478,-681.99,0.0002,2]
[400018292,1767023449497,-396.992,0.0002,2]
[400018293,1767023449514,-396.992009,0.0002,2]
[400018294,1767023449528,-151.0,0.0002,2]
[400018295,1767023449537,-151.0,0.0002,2]
[400018296,1767023449548,-151.0,0.0002,2]
[400018297,1767023449558,-151.0,0.0002,2]
[400018298,1767023449567,-151.0,0.0002,2]
[400018299,1767023449577,-151.88974,0.0002,2]
[400018300,1767023449587,-151.88974,0.0002,2]
[400018301,1767023449596,-151.88974,0.0002,2]
[400018302,1767023449605,-151.889735,0.0002,2]
[400018303,1767023449616,-1989.21,0.0002,2]
[400018304,1767023449625,-153.597455,0.0002,2]
[400018305,1767023449635,-500.0,0.0002,2]
[400018306,1767023449646,-500.0,0.0002,2]
[400018307,1767023449656,-418.56912658,0.0002,2]
[400018308,1767023449665,-500.0,0.0002,2]
[400018309,1767023449676,-1629.988117,0.0002,2]
[400018310,1767023449686,-1629.988117,0.0002,2]
[400018311,1767023449697,-1629.988117,0.0002,2]
[400018312,1767023449706,-1629.988108,0.0002,2]
[400018313,1767023449716,-204.55178,0.0002,2]
[400018314,1767023449726,-204.55178,0.0002,2]
[400018315,1767023449737,-204.55178,0.0002,2]
[400018316,1767023449747,-204.551788,0.0002,2]
[400018317,1767023449757,-394.448318,0.0002,2]
[400018318,1767023449766,-394.448318,0.0002,2]
[400018319,1767023449775,-394.448318,0.0002,2]
[400018320,1767023449784,-394.448319,0.0002,2]
[400018321,1767023449793,-500.0,0.0002,2]
[400018322,1767023449803,-500.0,0.0002,2]
[400018323,1767023449812,-260.33084973,0.0002,2]
[400018324,1767023449821,-500.0,0.0002,2]
[400018325,1767023449831,-151.0,0.0002,2]
[400018326,1767023449841,-174.891654,0.0002,2]
[400018327,1767023449850,-174.891654,0.0002,2]
[400018328,1767023449859,-151.0,0.0002,2]
[400018329,1767023449871,-174.891654,0.0002,2]
[400018330,1767023449881,-174.891654,0.0002,2]
[400018331,1767023449892,-197.794008,0.0002,2]
[400018332,1767023449902,-197.794008,0.0002,2]
[400018333,1767023449912,-500.0,0.0002,2]
[400018334,1767023449922,-197.794008,0.0002,2]
[400018335,1767023449933,-197.794015,0.0002,2]
[400018336,1767023449943,-500.0,0.0002,2]
[400018337,1767023449955,-509.772071,0.0002,2]
[400018338,1767023449966,-151.0,0.0002,2]
[400018339,1767023449976,-509.772071,0.0002,2]
[400018340,1767023449986,-509.772071,0.0002,2]
[400018341,1767023449996,-509.772067,0.0002,2]
[400018342,1767023450006,-160.28991,0.0002,2]
[400018343,1767023450015,-160.28991,0.0002,2]
[400018344,1767023450029,-160.28991,0.0002,2]
[400018345,1767023450038,-160.289918,0.0002,2]
[400018346,1767023450047,-584.07655682,0.0002,2]
[400018347,1767023450058,-10371.66,0.0002,2]
[400018348,1767023450069,-151.0,0.0002,2]
[400018349,1767023450079,-151.0,0.0002,2]
[400018350,1767023450088,-151.0,0.0002,2]
[400018351,1767023450098,-151.0,0.0002,2]
[400018352,1767023450109,-507.77725803,0.0002,2]
[400018353,1767023450118,-500.0,0.0002,2]
[400018354,1767023450127,-506.77058064,0.0002,2]
[400018355,1767023450136,-151.0,0.0002,2]
[400018356,1767023450145,-928.38,0.0002,2]
[400018357,1767023450155,-1585.9,0.0002,2]
[400018358,1767023450164,-1111.48,0.0002,2]
[400018359,1767023450174,-500.0,0.0002,2]
[400018360,1767023450183,-1867.66,0.0002,2]
[400018361,1767023450193,-302.10028417,0.0002,2]
[400018362,1767023450205,-500.0,0.0002,2]
[400018363,1767023450219,-500.0,0.0002,2]
[400018364,1767023450233,-731.41,0.0002,2]
[400018365,1767023450247,-500.0,0.0002,2]
[400018366,1767023450259,-500.0,0.0002,2]
[400018367,1767023450270,-1960.08,0.0002,2]
[400018368,1767023450283,-2000.0,0.0002,7]
[400018369,1767023450294,-1306.39,0.0002,2]
[400018370,1767023450307,-2052.28,0.0002,2]
[400018371,1767023450319,-500.0,0.0002,2]
[400018372,1767023450332,-151.0,0.0002,2]
[400018373,1767023450344,-500.0,0.0002,2]
[400018374,1767023450357,-151.0,0.0002,2]
[400018375,1767023450370,-160.0,0.00020035,2]
[400018376,1767023450383,-282.89925884,0.00020035,2]
[400018377,1767023450396,-1000.0,0.00020035,2]
[400018378,1767023450408,-1000.0,0.00020035,2]
[400018379,1767023450420,-1000.0,0.00020035,2]
[400018380,1767023450432,-1000.0,0.00020035,2]
[400018381,1767023450443,-547.57378833,0.00020035,2]
[400018382,1767023450457,-720.0,0.00020125,2]
[400018383,1767023450470,-15277.58765553,0.00020173,2]
[400018384,1767023450482,-220.2398701,0.00020183,2]
[400018385,1767023450494,-499.92883,0.00020187,2]
[400018386,1767023450504,-2714.33860453,0.00020273,2]
[400018387,1767023450515,-1000.0,0.00020273,2]
[400018388,1767023450528,-189.52494036,0.00020273,2]
[400018389,1767023450539,-500.0,0.00020273,2]
[400018390,1767023450552,-594.68,0.00020273,2]
[400018391,1767023450565,-1000.0,0.00020273,2]
[400018392,1767023450578,-736.92,0.00020273,2]
[400018393,1767023450592,-836.09,0.00020273,2]
[400018394,1767023450604,-1154.01,0.00020273,2]
[400018395,1767023450616,-500.0,0.00020273,2]
[400018396,1767023450629,-500.0,0.00020273,2]
[400018397,1767023450640,-681.99,0.00020273,2]
[400018398,1767023450651,-1989.21,0.00020273,2]
[400018399,1767023450662,-193.50134335,0.00020273,2]
[400018400,1767023450673,-604.91477,0.00020273,2]
[400018401,1767023450686,-627.83552003,0.00020273,2]
[400018402,1767023450700,-500.0,0.00020273,2]
[400018403,1767023450712,-500.0,0.00020273,2]
[400018404,1767023450724,-500.0,0.00020273,2]
[400018405,1767023450734,-500.0,0.00020273,2]
[400018406,1767023450745,-262.08073151,0.00020273,2]
[400018407,1767023450756,-10371.66,0.00020273,2]
[400018408,1767023450768,-500.0,0.00020273,2]
[400018409,1767023450781,-928.38,0.00020273,2]
[400018410,1767023450792,-1585.9,0.00020273,2]
[400018411,1767023450803,-1111.48,0.00020273,2]
[400018412,1767023450816,-500.0,0.00020273,2]
[400018413,1767023450829,-1867.66,0.00020273,2]
[400018414,1767023450840,-500.0,0.00020273,2]
[400018415,1767023450852,-500.0,0.00020273,2]
[400018416,1767023450864,-731.41,0.00020273,2]
[400018417,1767023450878,-500.0,0.00020273,2]
[400018418,1767023450891,-500.0,0.00020273,2]
[400018419,1767023450904,-1960.08,0.00020273,2]
[400018420,1767023450916,-1306.39,0.00020273,2]
[400018421,1767023450926,-2052.28,0.00020273,2]
[400018422,1767023450937,-500.0,0.00020273,2]
[400018423,1767023450948,-500.0,0.00020273,2]
[400018424,1767023450958,-260.0,0.00020317,2]
[400018425,1767023450969,-301.0,0.00020356,3]
[400018426,1767023450980,-2714.33860453,0.00020547,2]
[400018427,1767023450991,-1000.0,0.00020547,2]
[400018428,1767023451002,-500.0,0.00020547,2]
[400018429,1767023451014,-594.68,0.00020547,2]
[400018430,1767023451026,-1000.0,0.00020547,2]
[400018431,1767023451041,-736.92,0.00020547,2]
[400018432,1767023451051,-836.09,0.00020547,2]
[400018433,1767023451064,-1154.01,0.00020547,2]
[400018434,1767023451076,-500.0,0.00020547,2]
[400018435,1767023451088,-500.0,0.00020547,2]
[400018436,1767023451100,-681.99,0.00020547,2]
[400018437,1767023451114,-1989.21,0.00020547,2]
[400018438,1767023451125,-500.0,0.00020547,2]
[400018439,1767023451136,-500.0,0.00020547,2]
[400018440,1767023451147,-500.0,0.00020547,2]
[400018441,1767023451160,-500.0,0.00020547,2]
[400018442,1767023451172,-10371.66,0.00020547,2]
[400018443,1767023451184,-500.0,0.00020547,2]
[400018444,1767023451196,-928.38,0.00020547,2]
[400018445,1767023451208,-1585.9,0.00020547,2]
[400018446,1767023451219,-1111.48,0.00020547,2]
[400018447,1767023451229,-316.78199666,0.00020547,2]
[400018448,1767023451240,-1867.66,0.00020547,2]
[400018449,1767023451251,-500.0,0.00020547,2]
[400018450,1767023451262,-500.0,0.00020547,2]
[400018451,1767023451274,-731.41,0.00020547,2]
[400018452,1767023451285,-500.0,0.00020547,2]
[400018453,1767023451296,-1960.08,0.00020547,2]
[400018454,1767023451307,-1306.39,0.00020547,2]
[400018455,1767023451320,-2052.28,0.00020547,2]
[400018456,1767023451331,-500.0,0.00020547,2]
[400018457,1767023451344,-500.0,0.00020547,2]
[400018458,1767023451357,-2000.0,0.00020588,7]
[400018459,1767023451368,-2351.72,0.000206,2]
[400018460,1767023451380,-1096.4419821,0.00020653,2]
[400018461,1767023451394,-4195.49136632,0.00020729,2]
[400018462,1767023451405,-27721.11,0.00020795,3]
[400018463,1767023451416,-2714.33860453,0.00020821,2]
[400018464,1767023451428,-1000.0,0.00020821,2]
[400018465,1767023451439,-500.0,0.00020821,2]
[400018466,1767023451450,-594.68,0.00020821,2]
[400018467,1767023451461,-1000.0,0.00020821,2]
[400018468,1767023451475,-736.92,0.00020821,2]
[400018469,1767023451486,-836.09,0.00020821,2]
[400018470,1767023451496,-1154.01,0.00020821,2]
[400018471,1767023451508,-270.00334258,0.00020821,2]
[400018472,1767023451519,-180.59460156,0.00020821,2]
[400018473,1767023451531,-681.99,0.00020821,2]
[400018474,1767023451541,-1989.21,0.00020821,2]
[400018475,1767023451553,-194.49007806,0.00020821,2]
[400018476,1767023451564,-488.41846043,0.00020821,2]
[400018477,1767023451577,-500.0,0.00020821,2]
[400018478,1767023451589,-500.0,0.00020821,2]
[400018479,1767023451601,-10371.66,0.00020821,2]
[400018480,1767023451613,-500.0,0.00020821,2]
[400018481,1767023451625,-928.38,0.00020821,2]
[400018482,1767023451637,-1585.9,0.00020821,2]
[400018483,1767023451648,-1111.48,0.00020821,2]
[400018484,1767023451809,-1867.66,0.00020821,2]
[400018485,1767023451819,-500.0,0.00020821,2]
[400018486,1767023451828,-500.0,0.00020821,2]
[400018487,1767023451838,-731.41,0.00020821,2]
[400018488,1767023451847,-500.0,0.00020821,2]
[400018489,1767023451856,-1960.08,0.00020821,2]
[400018490,1767023451865,-1306.39,0.00020821,2]
[400018491,1767023451875,-2052.28,0.00020821,2]
[400018492,1767023451884,-500.0,0.00020821,2]
[400018493,1767023451893,-500.0,0.00020821,2]
[400018494,1767023451902,-360.0,0.00020864,2]
[400018495,1767023451911,-2626.5273491,0.00020892,2]
[400018496,1767023451920,-165.0050275,0.000209,2]
[400018497,1767023451929,-106427.19890264,0.00021,2]
[400018498,1767023451939,-12291.21073646,0.00021,7]
[400018499,1767023451948,-2714.33860453,0.00021095,2]
[400018500,1767023451958,-1000.0,0.00021095,2]
[400018501,1767023451967,-500.0,0.00021095,2]
[400018502,1767023451976,-594.68,0.00021095,2]
[400018503,1767023451985,-1000.0,0.00021095,2]
[400018504,1767023451995,-736.92,0.00021095,2]
[400018505,1767023452004,-836.09,0.00021095,2]
[400018506,1767023452013,-1154.01,0.00021095,2]
[400018507,1767023452023,-681.99,0.00021095,2]
[400018508,1767023452036,-1989.21,0.00021095,2]
[400018509,1767023452045,-500.0,0.00021095,2]
[400018510,1767023452055,-245.40571301,0.00021095,2]
[400018511,1767023452065,-10371.66,0.00021095,2]
[400018512,1767023452075,-500.0,0.00021095,2]
[400018513,1767023452087,-928.38,0.00021095,2]
[400018514,1767023452098,-1585.9,0.00021095,2]
[400018515,1767023452107,-1111.48,0.00021095,2]
[400018516,1767023452117,-1867.66,0.00021095,2]
[400018517,1767023452126,-500.0,0.00021095,2]
[400018518,1767023452137,-500.0,0.00021095,2]
[400018519,1767023452146,-731.41,0.00021095,2]
[400018520,1767023452155,-500.0,0.00021095,2]
[400018521,1767023452165,-1960.08,0.00021095,2]
[400018522,1767023452175,-1306.39,0.00021095,2]
[400018523,1767023452186,-2052.28,0.00021095,2]
[400018524,1767023452197,-500.0,0.00021095,2]
[400018525,1767023452208,-500.0,0.00021095,2]
[400018526,1767023452219,-9056.49,0.000211,2]
[400018527,1767023452228,-244.649275,0.00021172,2]
[400018528,1767023452239,-2000.0,0.00021176,7]
[400018529,1767023452248,-377.32513099,0.00021273,2]
[400018530,1767023452257,-2714.33860453,0.00021369,2]
[400018531,1767023452267,-1000.0,0.00021369,2]
[400018532,1767023452278,-500.0,0.00021369,2]
[400018533,1767023452289,-594.68,0.00021369,2]
[400018534,1767023452300,-1000.0,0.00021369,2]
[400018535,1767023452310,-736.92,0.00021369,2]
[400018536,1767023452319,-836.09,0.00021369,2]
[400018537,1767023452329,-1154.01,0.00021369,2]
[400018538,1767023452338,-681.99,0.00021369,2]
[400018539,1767023452347,-1989.21,0.00021369,2]
[400018540,1767023452357,-500.0,0.00021369,2]
[400018541,1767023452366,-10371.66,0.00021369,2]
[400018542,1767023452375,-500.0,0.00021369,2]
[400018543,1767023452384,-928.38,0.00021369,2]
[400018544,1767023452394,-1585.9,0.00021369,2]
[400018545,1767023452403,-1111.48,0.00021369,2]
[400018546,1767023452413,-1867.66,0.00021369,2]
[400018547,1767023452422,-500.0,0.00021369,2]
[400018548,1767023452432,-500.0,0.00021369,2]
[400018549,1767023452442,-731.41,0.00021369,2]
[400018550,1767023452451,-500.0,0.00021369,2]
[400018551,1767023452461,-1960.08,0.00021369,2]
[400018552,1767023452471,-1306.39,0.00021369,2]
[400018553,1767023452480,-2052.28,0.00021369,2]
[400018554,1767023452490,-500.0,0.00021369,2]
[400018555,1767023452499,-500.0,0.00021369,2]
[400018556,1767023452509,-460.0,0.00021412,2]
[400018557,1767023452518,-8426.25691148,0.000215,2]
[400018558,1767023452529,-586.057468,0.00021527,2]
[400018559,1767023452539,-373.0099169,0.00021623,2]
[400018560,1767023452548,-300.80134454,0.00021623,2]
[400018561,1767023452557,-2714.33860453,0.00021643,2]
[400018562,1767023452566,-1000.0,0.00021643,2]
[400018563,1767023452575,-500.0,0.00021643,2]
[400018564,1767023452585,-594.68,0.00021643,2]
[400018565,1767023452595,-1000.0,0.00021643,2]
[400018566,1767023452605,-736.92,0.00021643,2]
[400018567,1767023452615,-836.09,0.00021643,2]
[400018568,1767023452625,-1154.01,0.00021643,2]
[400018569,1767023452635,-681.99,0.00021643,2]
[400018570,1767023452644,-1989.21,0.00021643,2]
[400018571,1767023452654,-500.0,0.00021643,2]
[400018572,1767023452664,-10371.66,0.00021643,2]
[400018573,1767023452673,-505.65281298,0.00021643,2]
[400018574,1767023452683,-928.38,0.00021643,2]
[400018575,1767023452692,-1585.9,0.00021643,2]
[400018576,1767023452702,-1111.48,0.00021643,2]
[400018577,1767023452711,-1867.66,0.00021643,2]
[400018578,1767023452720,-500.0,0.00021643,2]
[400018579,1767023452730,-500.0,0.00021643,2]
[400018580,1767023452740,-731.41,0.00021643,2]
[400018581,1767023452751,-500.0,0.00021643,2]
[400018582,1767023452760,-1960.08,0.00021643,2]
[400018583,1767023452769,-1306.39,0.00021643,2]
[400018584,1767023452780,-2052.28,0.00021643,2]
[400018585,1767023452790,-500.0,0.00021643,2]
[400018586,1767023452799,-500.0,0.00021643,2]
[400018587,1767023452808,-168.0,0.00021683,2]
[400018588,1767023452818,-2000.0,0.00021765,7]
[400018589,1767023452827,-1000.0,0.000218,2]
[400018590,1767023452837,-700.0,0.000218,2]
[400018591,1767023452847,-500.0,0.00021883,2]
[400018592,1767023452856,-156.66,0.000219,2]
[400018593,1767023452866,-161.39,0.000219,2]
[400018594,1767023452875,-192.7500696,0.00021917,2]
[400018595,1767023452884,-155.45195617,0.00021917,2]
[400018596,1767023452894,-346.95012527,0.00021917,2]
[400018597,1767023452903,-2714.33860453,0.00021917,2]
[400018598,1767023452912,-279.81352111,0.00021917,2]
[400018599,1767023452921,-1000.0,0.00021917,2]
[400018600,1767023452930,-500.0,0.00021917,2]
[400018601,1767023452941,-594.68,0.00021917,2]
[400018602,1767023452951,-1000.0,0.00021917,2]
[400018603,1767023452960,-736.92,0.00021917,2]
[400018604,1767023452971,-836.09,0.00021917,2]
[400018605,1767023452981,-1154.01,0.00021917,2]
[400018606,1767023452993,-681.99,0.00021917,2]
[400018607,1767023453003,-1989.21,0.00021917,2]
[400018608,1767023453012,-379.03068811,0.00021917,2]
[400018609,1767023453022,-500.0,0.00021917,2]
[400018610,1767023453035,-500.0,0.00021917,2]
[400018611,1767023453045,-500.0,0.00021917,2]
[400018612,1767023453057,-500.0,0.00021917,2]
[400018613,1767023453067,-500.0,0.00021917,2]
[400018614,1767023453077,-500.0,0.00021917,2]
[400018615,1767023453087,-500.0,0.00021917,2]
[400018616,1767023453096,-500.0,0.00021917,2]
[400018617,1767023453107,-500.0,0.00021917,2]
[400018618,1767023453117,-500.0,0.00021917,2]
[400018619,1767023453126,-500.0,0.00021917,2]
[400018620,1767023453136,-302.59549806,0.00021917,2]
[400018621,1767023453145,-10371.66,0.00021917,2]
[400018622,1767023453155,-928.38,0.00021917,2]
[400018623,1767023453165,-1585.9,0.00021917,2]
[400018624,1767023453176,-1111.48,0.00021917,2]
[400018625,1767023453186,-1867.66,0.00021917,2]
[400018626,1767023453196,-500.0,0.00021917,2]
[400018627,1767023453206,-500.0,0.00021917,2]
[400018628,1767023453217,-731.41,0.00021917,2]
[400018629,1767023453227,-500.0,0.00021917,2]
[400018630,1767023453241,-1960.08,0.00021917,2]
[400018631,1767023453251,-1306.39,0.00021917,2]
[400018632,1767023453261,-2052.28,0.00021917,2]
[400018633,1767023453271,-500.0,0.00021917,2]
[400018634,1767023453281,-500.0,0.00021917,2]
[400018635,1767023453291,-560.0,0.0002196,2]
[400018636,1767023453301,-1629.22,0.00022,7]
[400018637,1767023453311,-262.16,0.00022,2]
[400018638,1767023453320,-402.0,0.00022,2]
[400018639,1767023453330,-168.0,0.00022035,2]
[400018640,1767023453340,-15277.58765547,0.0002209,2]
[400018641,1767023453350,-864.0,0.00022138,10]
[400018642,1767023453360,-1104.06332377,0.00022141,2]
[400018643,1767023453369,-700.0,0.00022142,2]
[400018644,1767023453378,-2714.33860453,0.00022191,2]
[400018645,1767023453388,-1000.0,0.00022191,2]
[400018646,1767023453397,-500.0,0.00022191,2]
[400018647,1767023453408,-594.68,0.00022191,2]
[400018648,1767023453418,-1000.0,0.00022191,2]
[400018649,1767023453428,-736.92,0.00022191,2]
[400018650,1767023453438,-836.09,0.00022191,2]
[400018651,1767023453448,-1154.01,0.00022191,2]
[400018652,1767023453459,-681.99,0.00022191,2]
[400018653,1767023453469,-1989.21,0.00022191,2]
[400018654,1767023453479,-500.0,0.00022191,2]
[400018655,1767023453490,-10371.66,0.00022191,2]
[400018656,1767023453501,-928.38,0.00022191,2]
[400018657,1767023453511,-1585.9,0.00022191,2]
[400018658,1767023453521,-1111.48,0.00022191,2]
[400018659,1767023453531,-1867.66,0.00022191,2]
[400018660,1767023453541,-500.0,0.00022191,2]
[400018661,1767023453551,-500.0,0.00022191,2]
[400018662,1767023453561,-731.41,0.00022191,2]
[400018663,1767023453571,-500.0,0.00022191,2]
[400018664,1767023453580,-1960.08,0.00022191,2]
[400018665,1767023453590,-1306.39,0.00022191,2]
[400018666,1767023453600,-2052.28,0.00022191,2]